fUSD/lending_fUSD_20240121
["ID","MTS","AMOUNT","RATE_DAILY","PERIOD"]
[312395506,1705858282025,-940.03,0.00041095,31]
[312395507,1705858282036,-742.17,0.00041095,31]
[312395508,1705858282048,-500.0,0.00041095,2]
[312395509,1705858282061,-2895.16,0.00041095,31]
[312395510,1705858282071,-638.01,0.00041095,31]
[312395511,1705858282081,-513.85989143,0.00041095,31]
[312395512,1705858282092,-958.94,0.00041095,31]
[312395513,1705858282101,-500.0,0.00041095,31]
[312395514,1705858282111,-500.0,0.00041095,31]
[312395515,1705858282120,-653.31,0.00041095,31]
[312395516,1705858282133,-500.0,0.00041095,31]
[312395517,1705858282143,-3096.04,0.00041095,31]
[312395518,1705858282153,-2622.21,0.00041095,31]
[312395519,1705858282163,-1315.5,0.00041095,31]
[312395520,1705858282173,-500.0,0.00041095,31]
[312395521,1705858282183,-906.52,0.00041095,31]
[312395522,1705858282192,-500.0,0.00041095,31]
[312395523,1705858282201,-1262.2,0.00041095,31]
[312395524,1705858282211,-500.0,0.00041095,31]
[312395525,1705858282220,-539.71,0.00041095,31]
[312395526,1705858282230,-500.0,0.00041095,2]
[312395527,1705858282239,-2322.86,0.00041095,31]
[312395528,1705858282249,-500.0,0.00041095,31]
[312395529,1705858282258,-1416.87,0.00041095,31]
[312395530,1705858282267,-500.0,0.00041095,31]
[312395531,1705858282277,-1205.84,0.00041095,31]
[312395532,1705858282286,-500.0,0.00041095,31]
[312395533,1705858282295,-500.0,0.00041095,31]
[312395534,1705858282304,-500.0,0.00041095,31]
[312395535,1705858282314,-4179.57,0.00041095,31]
[312395536,1705858282323,-625.74,0.00041095,31]
[312395537,1705858282333,-500.0,0.00041095,31]
[312395538,1705858282342,-500.0,0.00041095,31]
[312395539,1705858282351,-500.0,0.00041095,2]
[312395540,1705858282361,-500.0,0.00041095,31]
[312395541,1705858282371,-500.0,0.00041095,31]
[312395542,1705858282381,-250.0,0.00041095,31]
[312395543,1705858282390,-992.96,0.00041095,31]
[312395544,1705858282399,-500.0,0.00041095,31]
[312395545,1705858282408,-504.19048533,0.00041095,31]
[312395546,1705858282418,-1000.0,0.00041095,30]
[312395547,1705858282427,-815.51,0.00041095,31]
[312395548,1705858282437,-500.0,0.00041095,31]
[312395549,1705858282446,-547.37,0.00041095,2]
[312395550,1705858282455,-500.0,0.00041095,31]
[312395551,1705858282464,-500.0,0.00041095,31]
[312395552,1705858282474,-500.0,0.00041095,31]
[312395553,1705858282483,-503.27611598,0.00041095,31]
[312395554,1705858282493,-1425.95,0.00041095,31]
[312395555,1705858282502,-981.19,0.00041095,31]
[312395556,1705858282513,-500.0,0.00041095,31]
[312395557,1705858282522,-500.0,0.00041095,31]
[312395558,1705858282532,-500.0,0.00041095,31]
[312395559,1705858282542,-500.0,0.00041095,31]
[312395560,1705858282551,-827.44,0.00041095,31]
[312395561,1705858282561,-1200.56,0.00041095,31]
[312395562,1705858282571,-10855.62,0.00041095,31]
[312395563,1705858282581,-500.0,0.00041095,31]
[312395564,1705858282591,-500.0,0.00041095,31]
[312395565,1705858282602,-500.0,0.00041095,31]
[312395566,1705858282615,-500.0,0.00041095,31]
[312395567,1705858282624,-1017.46,0.00041095,31]
[312395568,1705858282633,-500.0,0.00041095,31]
[312395569,1705858282643,-500.0,0.00041095,31]
[312395570,1705858282653,-500.0,0.00041095,31]
[312395571,1705858282664,-500.0,0.00041095,2]
[312395572,1705858282674,-500.0,0.00041095,31]
[312395573,1705858282684,-500.0,0.00041095,31]
[312395574,1705858282694,-500.0,0.00041095,31]
[312395575,1705858282704,-9610.43,0.00041095,31]
[312395576,1705858282714,-500.0,0.00041095,31]
[312395577,1705858282723,-500.0,0.00041095,31]
[312395578,1705858282733,-500.0,0.00041095,31]
[312395579,1705858282742,-500.0,0.00041095,31]
[312395580,1705858282753,-500.0,0.00041095,31]
[312395581,1705858282764,-500.0,0.00041095,31]
[312395582,1705858282773,-1377.294861,0.00041095,7]
[312395583,1705858282782,-1377.294859,0.00041095,7]
[312395584,1705858282791,-411.658369,0.00041095,7]
[312395585,1705858282800,-411.658373,0.00041095,7]
[312395586,1705858282810,-158.868333,0.00041095,7]
[312395587,1705858282819,-158.868335,0.00041095,7]
[312395588,1705858282828,-151.0,0.00041095,7]
[312395589,1705858282837,-2604.058915,0.00041095,7]
[312395590,1705858282847,-2604.058911,0.00041095,7]
[312395591,1705858282857,-299.647335,0.00041095,7]
[312395592,1705858282867,-299.647327,0.00041095,7]
[312395593,1705858282877,-1098.304349,0.00041095,7]
[312395594,1705858282887,-1098.304342,0.00041095,7]
[312395595,1705858282896,-1273.934367,0.00041095,7]
[312395596,1705858282906,-1273.934368,0.00041095,7]
[312395597,1705858282916,-4000.0,0.00041096,30]
[312395598,1705858282928,-180.0,0.00041096,2]
[312395599,1705858282939,-5393.0,0.00041096,30]
[312395600,1705858282955,-500.0,0.00041096,30]
[312395601,1705858282965,-501.90520905,0.000411,2]
[312395602,1705858282975,-1765.0,0.000411,2]
[312395603,1705858282988,-300.0,0.000411,7]
[312395604,1705858282997,-1139.78561886,0.000411,14]
[312395605,1705858283007,-1139.78561886,0.000411,14]
[312395606,1705858283016,-1139.78561886,0.000411,14]
[312395607,1705858283026,-1139.78561886,0.000411,14]
[312395608,1705858283037,-1139.78561886,0.000411,14]
[312395609,1705858283048,-1139.78561886,0.000411,14]
[312395610,1705858283061,-1139.78561886,0.000411,14]
[312395611,1705858283072,-1139.78561886,0.000411,14]
[312395612,1705858283081,-1139.78561886,0.000411,14]
[312395613,1705858283093,-1139.78561886,0.000411,14]
[312395614,1705858283102,-1139.78561886,0.000411,14]
[312395615,1705858283113,-1139.78561886,0.000411,14]
[312395616,1705858283122,-1139.78561886,0.000411,14]
[312395617,1705858283136,-1139.78561886,0.000411,14]
[312395618,1705858283146,-1139.78561886,0.000411,14]
[312395619,1705858283156,-1139.78561886,0.000411,14]
[312395620,1705858283165,-1139.78561886,0.000411,14]
[312395621,1705858283175,-1139.78561886,0.000411,14]
[312395622,1705858283184,-1139.78561886,0.000411,14]
[312395623,1705858283193,-1139.78,0.000411,14]
[312395624,1705858283203,-4559.14247544,0.000411,14]
[312395625,1705858283213,-4559.14247544,0.000411,14]
[312395626,1705858283222,-4559.14247544,0.000411,14]
[312395627,1705858283232,-4559.14247544,0.000411,14]
[312395628,1705858283244,-4559.14247544,0.000411,14]
[312395629,1705858283255,-4559.14247544,0.000411,14]
[312395630,1705858283266,-4559.14247544,0.000411,14]
[312395631,1705858283275,-4559.14247544,0.000411,14]
[312395632,1705858283284,-567.60476137,0.000411,14]
[312395633,1705858283294,-567.60476137,0.000411,14]
[312395634,1705858283303,-567.60476137,0.000411,14]
[312395635,1705858283314,-567.60476137,0.000411,14]
[312395636,1705858283325,-567.60476137,0.000411,14]
[312395637,1705858283334,-567.60476137,0.000411,14]
[312395638,1705858283345,-567.60476137,0.000411,14]
[312395639,1705858283354,-567.60476137,0.000411,14]
[312395640,1705858283363,-567.60476137,0.000411,14]
[312395641,1705858283372,-567.60476137,0.000411,14]
[312395642,1705858283381,-567.60476137,0.000411,14]
[312395643,1705858283391,-567.60476137,0.000411,14]
[312395644,1705858283400,-567.60476137,0.000411,14]
[312395645,1705858283409,-567.60476137,0.000411,14]
[312395646,1705858283418,-567.60476137,0.000411,14]
[312395647,1705858283427,-567.60476137,0.000411,14]
[312395648,1705858283436,-567.60476137,0.000411,14]
[312395649,1705858283445,-567.60476137,0.000411,14]
[312395650,1705858283454,-567.60476137,0.000411,14]
[312395651,1705858283463,-567.6,0.000411,14]
[312395652,1705858283473,-2270.41904548,0.000411,14]
[312395653,1705858283484,-2270.41904548,0.000411,14]
[312395654,1705858283493,-2270.41904548,0.000411,14]
[312395655,1705858283502,-2270.41904548,0.000411,14]
[312395656,1705858283511,-2270.41904548,0.000411,14]
[312395657,1705858283521,-2270.41904548,0.000411,14]
[312395658,1705858283530,-2270.41904548,0.000411,14]
[312395659,1705858283539,-2270.41904548,0.000411,14]
[312395660,1705858283549,-776.92565683,0.000411,14]
[312395661,1705858283559,-776.92565683,0.000411,14]
[312395662,1705858283569,-776.92565683,0.000411,14]
[312395663,1705858283579,-776.92565683,0.000411,14]
[312395664,1705858283591,-776.92565683,0.000411,14]
[312395665,1705858283601,-776.92565683,0.000411,14]
[312395666,1705858283612,-776.92565683,0.000411,14]
[312395667,1705858283621,-776.92565683,0.000411,14]
[312395668,1705858283631,-776.92565683,0.000411,14]
[312395669,1705858283641,-776.92565683,0.000411,14]
[312395670,1705858283651,-776.92565683,0.000411,14]
[312395671,1705858283660,-776.92565683,0.000411,14]
[312395672,1705858283669,-776.92565683,0.000411,14]
[312395673,1705858283678,-776.92565683,0.000411,14]
[312395674,1705858283687,-776.92565683,0.000411,14]
[312395675,1705858283697,-776.92565683,0.000411,14]
[312395676,1705858283706,-776.92565683,0.000411,14]
[312395677,1705858283718,-776.92565683,0.000411,14]
[312395678,1705858283726,-776.92565683,0.000411,14]
[312395679,1705858283735,-776.92,0.000411,14]
[312395680,1705858283745,-3107.7026273,0.000411,14]
[312395681,1705858283754,-3107.7026273,0.000411,14]
[312395682,1705858283763,-3107.7026273,0.000411,14]
[312395683,1705858283772,-3107.7026273,0.000411,14]
[312395684,1705858283781,-3107.7026273,0.000411,14]
[312395685,1705858283790,-3107.7026273,0.000411,14]
[312395686,1705858283799,-3107.7026273,0.000411,14]
[312395687,1705858283809,-3107.7026273,0.000411,14]
[312395688,1705858283819,-863.06813448,0.000411,14]
[312395689,1705858283828,-863.06813448,0.000411,14]
[312395690,1705858283837,-863.06813448,0.000411,14]
[312395691,1705858283847,-863.06813448,0.000411,14]
[312395692,1705858283856,-863.06813448,0.000411,14]
[312395693,1705858283865,-863.06813448,0.000411,14]
[312395694,1705858283874,-863.06813448,0.000411,14]
[312395695,1705858283883,-863.06813448,0.000411,14]
[312395696,1705858283892,-863.06813448,0.000411,14]
[312395697,1705858283905,-863.06813448,0.000411,14]
[312395698,1705858283914,-863.06813448,0.000411,14]
[312395699,1705858283924,-863.06813448,0.000411,14]
[312395700,1705858283933,-863.06813448,0.000411,14]
[312395701,1705858283942,-863.06813448,0.000411,14]
[312395702,1705858283953,-863.06813448,0.000411,14]
[312395703,1705858283962,-863.06813448,0.000411,14]
[312395704,1705858283972,-863.06813448,0.000411,14]
[312395705,1705858283983,-863.06813448,0.000411,14]
[312395706,1705858283992,-863.06813448,0.000411,14]
[312395707,1705858284003,-863.06,0.000411,14]
[312395708,1705858284012,-3452.27253791,0.000411,14]
[312395709,1705858284021,-3452.27253791,0.000411,14]
[312395710,1705858284031,-3452.27253791,0.000411,14]
[312395711,1705858284041,-3452.27253791,0.000411,14]
[312395712,1705858284051,-3452.27253791,0.000411,14]
[312395713,1705858284063,-3452.27253791,0.000411,14]
[312395714,1705858284072,-3452.27253791,0.000411,14]
[312395715,1705858284082,-3452.27253791,0.000411,14]
[312395716,1705858284093,-682.80090566,0.000411,14]
[312395717,1705858284103,-682.80090566,0.000411,14]
[312395718,1705858284121,-682.80090566,0.000411,14]
[312395719,1705858284141,-682.80090566,0.000411,14]
[312395720,1705858284155,-682.80090566,0.000411,14]
[312395721,1705858284167,-682.80090566,0.000411,14]
[312395722,1705858284181,-682.80090566,0.000411,14]
[312395723,1705858284195,-682.80090566,0.000411,14]
[312395724,1705858284210,-682.80090566,0.000411,14]
[312395725,1705858284224,-682.80090566,0.000411,14]
[312395726,1705858284235,-682.80090566,0.000411,14]
[312395727,1705858284249,-682.80090566,0.000411,14]
[312395728,1705858284263,-682.80090566,0.000411,14]
[312395729,1705858284276,-682.80090566,0.000411,14]
[312395730,1705858284291,-682.80090566,0.000411,14]
[312395731,1705858284304,-682.80090566,0.000411,14]
[312395732,1705858284315,-682.80090566,0.000411,14]
[312395733,1705858284331,-682.80090566,0.000411,14]
[312395734,1705858284344,-682.80090566,0.000411,14]
[312395735,1705858284357,-682.8,0.000411,14]
[312395736,1705858284369,-2731.20362266,0.000411,14]
[312395737,1705858284383,-2731.20362266,0.000411,14]
[312395738,1705858284396,-2731.20362266,0.000411,14]
[312395739,1705858284411,-2731.20362266,0.000411,14]
[312395740,1705858284425,-2731.20362266,0.000411,14]
[312395741,1705858284439,-2731.20362266,0.000411,14]
[312395742,1705858284450,-2731.20362266,0.000411,14]
[312395743,1705858284460,-2731.20362266,0.000411,14]
[312395744,1705858284472,-1793.55456321,0.00041129,15]
[312395745,1705858284486,-398.2954038,0.00041129,15]
[312395746,1705858284500,-978.64005428,0.00041129,15]
[312395747,1705858284513,-663.63803324,0.00041129,15]
[312395748,1705858284524,-346.12153497,0.00041129,15]
[312395749,1705858284536,-457.34679044,0.00041129,15]
[312395750,1705858284550,-254.66226653,0.00041129,15]
[312395751,1705858284561,-560.1385297,0.00041129,15]
[312395752,1705858284573,-1073.36967785,0.00041129,15]
[312395753,1705858284586,-485.60130924,0.00041129,15]
[312395754,1705858284599,-495.77250205,0.00041129,15]
[312395755,1705858284611,-219.91985459,0.00041129,15]
[312395756,1705858284624,-1791.0115251,0.00041129,15]
[312395757,1705858284636,-748.2958685,0.00041129,15]
[312395758,1705858284649,-1778.59968586,0.00041129,15]
[312395759,1705858284662,-906.31648109,0.00041129,15]
[312395760,1705858284675,-1000.0,0.00041129,15]
[312395761,1705858284687,-1852.25450126,0.00041129,15]
[312395762,1705858284698,-1000.0,0.00041129,15]
[312395763,1705858284710,-1491.10810065,0.00041129,15]
[312395764,1705858284722,-222.25138787,0.00041129,15]
[312395765,1705858284734,-505.22825158,0.00041129,15]
[312395766,1705858284745,-152.14113685,0.00041145,30]
[312395767,1705858284756,-443.84,0.00041145,2]
[312395768,1705858284768,-166.99392,0.00041161,4]
[312395769,1705858284780,-1879.85265306,0.00041165,30]
[312395770,1705858284792,-400.0,0.0004117,3]
[312395771,1705858284804,-156.06191131,0.00041176,11]
[312395772,1705858284816,-1000.0,0.000412,40]
[312395773,1705858284828,-1510.0,0.00041201,30]
[312395774,1705858284840,-369.0,0.00041201,30]
[312395775,1705858284852,-972.15254168,0.00041209,30]
[312395776,1705858284864,-488.57291348,0.00041215,15]
[312395777,1705858284877,-163.51950016,0.00041215,15]
[312395778,1705858284888,-519.08,0.0004125,40]
[312395779,1705858284900,-305.35588113,0.00041251,30]
[312395780,1705858284912,-305.35588113,0.00041253,30]
[312395781,1705858284924,-150.39788915,0.00041273,30]
[312395782,1705858284936,-156.0,0.000413,7]
[312395783,1705858284948,-152.14113685,0.00041314,30]
[312395784,1705858284959,-178.18454646,0.00041327,30]
[312395785,1705858284971,-155.53562738,0.00041332,30]
[312395786,1705858284985,-9781.253776,0.00041344,30]
[312395787,1705858284997,-254.181053,0.00041344,30]
[312395788,1705858285010,-213.321367,0.00041344,30]
[312395789,1705858285022,-150.39788915,0.00041347,30]
[312395790,1705858285034,-150.39788915,0.00041352,30]
[312395791,1705858285047,-851.28950611,0.00041355,15]
[312395792,1705858285063,-4559.14247544,0.00041363,14]
[312395793,1705858285075,-2270.41904548,0.00041363,14]
[312395794,1705858285087,-3107.7026273,0.00041363,14]
[312395795,1705858285099,-3452.27253791,0.00041363,14]
[312395796,1705858285111,-2731.20362266,0.00041363,14]
[312395797,1705858285123,-597.66,0.00041369,30]
[312395798,1705858285137,-510.0,0.00041369,120]
[312395799,1705858285151,-1000.0,0.0004137,120]
[312395800,1705858285162,-305.35588113,0.00041376,30]
[312395801,1705858285175,-152.68322872,0.00041387,15]
[312395802,1705858285187,-435.49788718,0.00041423,15]
[312395803,1705858285200,-500.0,0.00041425,14]
[312395804,1705858285213,-201.0,0.00041427,28]
[312395805,1705858285225,-222.88625102,0.00041441,15]
[312395806,1705858285237,-150.39788915,0.00041449,30]
[312395807,1705858285248,-1071.79666644,0.00041462,15]
[312395808,1705858285259,-8460.0,0.00041463,7]
[312395809,1705858285272,-157.48867627,0.00041478,30]
[312395810,1705858285284,-168.19300486,0.000415,4]
[312395811,1705858285296,-300.0,0.000415,4]
[312395812,1705858285307,-1000.0,0.000415,40]
[312395813,1705858285319,-1208.0,0.00041506,30]
[312395814,1705858285331,-152.14113685,0.00041506,30]
[312395815,1705858285342,-580.45143551,0.00041507,15]
[312395816,1705858285354,-305.35588113,0.00041512,30]
[312395817,1705858285366,-275.52415156,0.00041522,4]
[312395818,1705858285377,-152.14113685,0.00041537,30]
[312395819,1705858285389,-157.48867627,0.00041569,30]
[312395820,1705858285400,-30307.0,0.0004159,3]
[312395821,1705858285412,-154.66599482,0.00041604,30]
[312395822,1705858285425,-1879.85265306,0.00041619,30]
[312395823,1705858285437,-1510.0,0.00041621,30]
[312395824,1705858285450,-369.0,0.00041621,30]
[312395825,1705858285462,-597.66,0.00041643,30]
[312395826,1705858285481,-500.0,0.00041643,31]
[312395827,1705858285494,-500.0,0.00041643,31]
[312395828,1705858285506,-500.0,0.00041643,30]
[312395829,1705858285519,-500.0,0.00041643,30]
[312395830,1705858285531,-500.0,0.00041643,31]
[312395831,1705858285544,-500.0,0.00041643,30]
[312395832,1705858285557,-500.0,0.00041643,2]
[312395833,1705858285569,-500.0,0.00041643,31]
[312395834,1705858285582,-500.0,0.00041643,31]
[312395835,1705858285593,-500.0,0.00041643,31]
[312395836,1705858285606,-500.0,0.00041643,31]
[312395837,1705858285618,-508.15089873,0.00041643,31]
[312395838,1705858285630,-575.93533646,0.00041643,31]
[312395839,1705858285641,-500.0,0.00041643,31]
[312395840,1705858285653,-504.09512246,0.00041643,31]
[312395841,1705858285664,-500.0,0.00041643,31]
[312395842,1705858285690,-197.34796794,0.00041643,31]
[312395843,1705858285705,-506.32723958,0.00041643,31]
[312395844,1705858285722,-500.0,0.00041643,31]
[312395845,1705858285737,-500.0,0.00041643,31]
[312395846,1705858285751,-509.17412663,0.00041643,31]
[312395847,1705858285766,-500.0,0.00041643,31]
[312395848,1705858285780,-500.0,0.00041643,31]
[312395849,1705858285794,-284.84192668,0.00041643,31]
[312395850,1705858285808,-500.0,0.00041643,31]
[312395851,1705858285821,-500.0,0.00041643,31]
[312395852,1705858285834,-530.23126632,0.00041643,31]
[312395853,1705858285847,-500.0,0.00041643,31]
[312395854,1705858285860,-293.43651877,0.00041643,31]
[312395855,1705858285872,-500.0,0.00041643,31]
[312395856,1705858285884,-500.0,0.00041643,31]
[312395857,1705858285897,-500.0,0.00041643,31]
[312395858,1705858285909,-500.0,0.00041643,31]
[312395859,1705858285922,-509.91620346,0.00041643,31]
[312395860,1705858285935,-500.68131213,0.00041643,31]
[312395861,1705858285946,-500.0,0.00041643,31]
[312395862,1705858285959,-500.0,0.00041643,31]
[312395863,1705858285971,-500.0,0.00041643,31]
[312395864,1705858285984,-500.0,0.00041643,31]
[312395865,1705858285995,-513.41808295,0.00041643,31]
[312395866,1705858286007,-500.0,0.00041643,31]
[312395867,1705858286019,-500.0,0.00041643,31]
[312395868,1705858286030,-500.0,0.00041643,31]
[312395869,1705858286043,-500.0,0.00041643,31]
[312395870,1705858286061,-519.840093,0.00041643,31]
[312395871,1705858286073,-500.0,0.00041643,31]
[312395872,1705858286086,-510.0,0.00041643,120]
[312395873,1705858286099,-505.87198221,0.00041643,31]
[312395874,1705858286110,-500.0,0.00041643,31]
[312395875,1705858286122,-500.0,0.00041643,31]
[312395876,1705858286135,-500.0,0.00041643,31]
[312395877,1705858286148,-500.0,0.00041643,31]
[312395878,1705858286160,-509.91471799,0.00041643,31]
[312395879,1705858286171,-500.0,0.00041643,31]
[312395880,1705858286182,-500.0,0.00041643,31]
[312395881,1705858286194,-500.0,0.00041643,31]
[312395882,1705858286205,-500.0,0.00041643,31]
[312395883,1705858286217,-500.0,0.00041643,31]
[312395884,1705858286228,-500.0,0.00041643,31]
[312395885,1705858286240,-845.58,0.00041643,31]
[312395886,1705858286252,-515.33372431,0.00041643,31]
[312395887,1705858286263,-500.0,0.00041643,31]
[312395888,1705858286274,-519.69745387,0.00041643,31]
[312395889,1705858286286,-500.0,0.00041643,31]
[312395890,1705858286297,-500.0,0.00041643,31]
[312395891,1705858286308,-800.59,0.00041643,31]
[312395892,1705858286319,-354.62474622,0.00041643,31]
[312395893,1705858286330,-500.0,0.00041643,31]
[312395894,1705858286342,-500.0,0.00041643,31]
[312395895,1705858286353,-500.0,0.00041643,31]
[312395896,1705858286365,-500.0,0.00041643,31]
[312395897,1705858286376,-508.17,0.00041643,31]
[312395898,1705858286387,-500.0,0.00041643,31]
[312395899,1705858286398,-526.82,0.00041643,31]
[312395900,1705858286409,-608.82,0.00041643,31]
[312395901,1705858286420,-1000.0,0.00041643,31]
[312395902,1705858286432,-500.0,0.00041643,31]
[312395903,1705858286445,-500.0,0.00041643,31]
[312395904,1705858286458,-500.0,0.00041643,31]
[312395905,1705858286470,-500.0,0.00041643,31]
[312395906,1705858286482,-500.0,0.00041643,31]
[312395907,1705858286494,-500.0,0.00041643,31]
[312395908,1705858286505,-669.62,0.00041643,31]
[312395909,1705858286516,-500.0,0.00041643,31]
[312395910,1705858286528,-506.66447596,0.00041643,31]
[312395911,1705858286539,-500.0,0.00041643,31]
[312395912,1705858286552,-500.0,0.00041643,31]
[312395913,1705858286564,-500.0,0.00041643,31]
[312395914,1705858286576,-500.0,0.00041643,31]
[312395915,1705858286588,-500.0,0.00041643,31]
[312395916,1705858286600,-500.0,0.00041643,31]
[312395917,1705858286614,-500.0,0.00041643,31]
[312395918,1705858286626,-529.79,0.00041643,31]
[312395919,1705858286637,-500.0,0.00041643,31]
[312395920,1705858286650,-500.0,0.00041643,31]
[312395921,1705858286661,-500.0,0.00041643,31]
[312395922,1705858286672,-1950.75,0.00041643,31]
[312395923,1705858286684,-500.0,0.00041643,31]
[312395924,1705858286695,-500.0,0.00041643,31]
[312395925,1705858286708,-500.0,0.00041643,31]
[312395926,1705858286719,-500.0,0.00041643,31]
[312395927,1705858286731,-500.0,0.00041643,31]
[312395928,1705858286743,-500.0,0.00041643,31]
[312395929,1705858286754,-500.0,0.00041643,31]
[312395930,1705858286766,-500.0,0.00041643,31]
[312395931,1705858286779,-500.0,0.00041643,31]
[312395932,1705858286791,-500.0,0.00041643,31]
[312395933,1705858286802,-739.79,0.00041643,31]
[312395934,1705858286813,-500.0,0.00041643,31]
[312395935,1705858286826,-1003.96826568,0.00041643,2]
[312395936,1705858286839,-500.0,0.00041643,31]
[312395937,1705858286851,-191.4753274,0.00041643,31]
[312395938,1705858286863,-500.0,0.00041643,31]
[312395939,1705858286876,-500.0,0.00041643,31]
[312395940,1705858286887,-612.53,0.00041643,31]
[312395941,1705858286899,-559.97,0.00041643,31]
[312395942,1705858286910,-562.5,0.00041643,31]
[312395943,1705858286921,-583.04,0.00041643,31]
[312395944,1705858286932,-500.0,0.00041643,31]
[312395945,1705858286943,-500.0,0.00041643,31]
[312395946,1705858286954,-578.47,0.00041643,31]
[312395947,1705858286964,-500.0,0.00041643,31]
[312395948,1705858286977,-692.97,0.00041643,31]
[312395949,1705858286989,-505.09243009,0.00041643,31]
[312395950,1705858287001,-500.0,0.00041643,31]
[312395951,1705858287013,-500.0,0.00041643,31]
[312395952,1705858287024,-500.0,0.00041643,31]
[312395953,1705858287035,-600.4579113,0.00041643,31]
[312395954,1705858287047,-500.0,0.00041643,31]
[312395955,1705858287062,-500.0,0.00041643,31]
[312395956,1705858287073,-794.24,0.00041643,31]
[312395957,1705858287085,-500.0,0.00041643,31]
[312395958,1705858287096,-500.0,0.00041643,31]
[312395959,1705858287107,-500.0,0.00041643,31]
[312395960,1705858287118,-515.21055199,0.00041643,31]
[312395961,1705858287130,-500.0,0.00041643,31]
[312395962,1705858287141,-573.24,0.00041643,31]
[312395963,1705858287152,-500.0,0.00041643,31]
[312395964,1705858287165,-707.04,0.00041643,31]
[312395965,1705858287176,-369.10120776,0.00041643,31]
[312395966,1705858287187,-500.0,0.00041643,31]
[312395967,1705858287621,-500.0,0.00041643,31]
[312395968,1705858287642,-500.0,0.00041643,31]
[312395969,1705858287651,-500.0,0.00041643,31]
[312395970,1705858287660,-500.0,0.00041643,31]
[312395971,1705858287669,-563.5,0.00041643,31]
[312395972,1705858287679,-500.0,0.00041643,31]
[312395973,1705858287689,-500.63975978,0.00041643,31]
[312395974,1705858287698,-500.0,0.00041643,31]
[312395975,1705858287707,-500.0,0.00041643,31]
[312395976,1705858287715,-500.0,0.00041643,31]
[312395977,1705858287725,-500.0,0.00041643,31]
[312395978,1705858287735,-500.0,0.00041643,31]
[312395979,1705858287745,-607.75,0.00041643,30]
[312395980,1705858287754,-503.40050869,0.00041643,31]
[312395981,1705858287763,-500.0,0.00041643,31]
[312395982,1705858287773,-630.01,0.00041643,31]
[312395983,1705858287782,-500.0,0.00041643,31]
[312395984,1705858287791,-500.0,0.00041643,31]
[312395985,1705858287800,-500.0,0.00041643,31]
[312395986,1705858287810,-470.04549835,0.00041643,31]
[312395987,1705858287820,-500.0,0.00041643,31]
[312395988,1705858287830,-500.0,0.00041643,7]
[312395989,1705858287840,-500.0,0.00041643,31]
[312395990,1705858287850,-500.0,0.00041643,31]
[312395991,1705858287860,-500.0,0.00041643,31]
[312395992,1705858287869,-718.93,0.00041643,31]
[312395993,1705858287878,-500.0,0.00041643,31]
[312395994,1705858287888,-500.0,0.00041643,31]
[312395995,1705858287898,-500.0,0.00041643,31]
[312395996,1705858287907,-500.0,0.00041643,31]
[312395997,1705858287916,-500.0,0.00041643,31]
[312395998,1705858287925,-500.0,0.00041643,31]
[312395999,1705858287934,-713.35,0.00041643,31]
[312396000,1705858287943,-500.0,0.00041643,31]
[312396001,1705858287953,-500.0,0.00041643,30]
[312396002,1705858287962,-500.0,0.00041643,31]
[312396003,1705858287970,-500.0,0.00041643,31]
[312396004,1705858287979,-500.0,0.00041643,31]
[312396005,1705858287989,-500.0,0.00041643,31]